[Event "Mistrovství Čech mládeže 2023 - HD14"]
[Site "Harrachov, Czech Republic"]
[Date "2023.10.26"]
[Round "7.11"]
[White "Kammová, Kateřina"]
[Black "Petrášek, Jiří"]
[Result "0-1"]
[TimeControl "90m + 30s"]
[WhiteElo "1543"]
[BlackElo "1423"]

1. e4 {[%clk 01:30:56]} {[%emt 00:00:04]} e5 {[%clk 01:30:53]} {[%emt
00:00:07]} 2. Nf3 {[%clk 01:31:16]} {[%emt 00:00:10]} Nc6 {[%clk 01:31:15]}
{[%emt 00:00:08]} 3. d4 {[%clk 01:31:07]} {[%emt 00:00:39]} exd4 {[%clk
01:31:32]} {[%emt 00:00:12]} 4. Nxd4 {[%clk 01:31:32]} {[%emt 00:00:05]} Bc5
{[%clk 01:31:44]} {[%emt 00:00:19]} 5. Be3 {[%clk 01:31:28]} {[%emt 00:00:33]}
Qf6 {[%clk 01:31:28]} {[%emt 00:00:46]} 6. c3 {[%clk 01:31:02]} {[%emt
00:00:56]} Nge7 {[%clk 01:29:12]} {[%emt 00:02:46]} 7. Qd2 {[%clk 01:29:24]}
{[%emt 00:02:08]} h6 {[%clk 01:25:45]} {[%emt 00:03:58]} 8. Nb5 {[%clk
01:26:39]} {[%emt 00:03:15]} Bxe3 {[%clk 01:11:36]} {[%emt 00:14:39]} 9. Qxe3
{[%clk 01:26:40]} {[%emt 00:00:28]} Kd8 {[%clk 01:11:02]} {[%emt 00:01:05]} 10.
Nd2 {[%clk 01:14:46]} {[%emt 00:12:24]} Re8 {[%clk 01:05:08]} {[%emt 00:06:24]}
11. O-O-O {[%clk 01:07:37]} {[%emt 00:07:39]} a6 {[%clk 01:03:06]} {[%emt
00:02:33]} 12. Na3 {[%clk 00:53:08]} {[%emt 00:14:59]} Ng6 {[%clk 00:50:02]}
{[%emt 00:13:33]} 13. g3 {[%clk 00:48:57]} {[%emt 00:04:41]} d6 {[%clk
00:44:16]} {[%emt 00:06:16]} 14. h3 {[%clk 00:45:40]} {[%emt 00:03:46]} Be6
{[%clk 00:36:25]} {[%emt 00:08:21]} 15. Bc4 {[%clk 00:32:36]} {[%emt 00:13:35]}
Kc8 {[%clk 00:28:21]} {[%emt 00:08:34]} 16. Kb1 {[%clk 00:28:26]} {[%emt
00:04:39]} Re7 {[%clk 00:25:30]} {[%emt 00:03:21]} 17. Bxe6+ {[%clk 00:24:34]}
{[%emt 00:04:22]} Qxe6 {[%clk 00:23:18]} {[%emt 00:02:41]} 18. Nc2 {[%clk
00:22:43]} {[%emt 00:02:21]} f5 {[%clk 00:17:17]} {[%emt 00:06:31]} 19. exf5
{[%clk 00:18:40]} {[%emt 00:04:33]} Qxf5 {[%clk 00:17:30]} {[%emt 00:00:17]} 20.
Qf3 {[%clk 00:18:01]} {[%emt 00:01:10]} Qxf3 {[%clk 00:17:03]} {[%emt
00:00:57]} 21. Nxf3 {[%clk 00:17:57]} {[%emt 00:00:32]} Rf7 {[%clk 00:17:23]}
{[%emt 00:00:13]} 22. Nce1 {[%clk 00:15:33]} {[%emt 00:02:53]} Kd7 {[%clk
00:16:48]} {[%emt 00:01:05]} 23. Rd2 {[%clk 00:15:01]} {[%emt 00:01:02]} Raf8
{[%clk 00:16:30]} {[%emt 00:00:47]} 24. Nd4 {[%clk 00:10:23]} {[%emt 00:05:08]}
Nxd4 {[%clk 00:15:26]} {[%emt 00:01:34]} 25. Rxd4 {[%clk 00:10:30]} {[%emt
00:00:23]} Rxf2 {[%clk 00:14:44]} {[%emt 00:01:12]} 26. Nd3 {[%clk 00:10:42]}
{[%emt 00:00:18]} Rf1+ {[%clk 00:14:44]} {[%emt 00:00:31]} 27. Rxf1 {[%clk
00:11:01]} {[%emt 00:00:11]} Rxf1+ {[%clk 00:14:57]} {[%emt 00:00:17]} 28. Kc2
{[%clk 00:11:25]} {[%emt 00:00:06]} Ke6 {[%clk 00:13:50]} {[%emt 00:01:36]} 29.
Re4+ {[%clk 00:10:44]} {[%emt 00:01:11]} Kf7 {[%clk 00:13:28]} {[%emt
00:00:52]} 30. Re3 {[%clk 00:10:01]} {[%emt 00:01:14]} Ne7 {[%clk 00:11:49]}
{[%emt 00:02:08]} 31. Nf4 {[%clk 00:06:46]} {[%emt 00:03:46]} Nf5 {[%clk
00:10:19]} {[%emt 00:02:00]} 32. Rd3 {[%clk 00:06:32]} {[%emt 00:00:44]} Rf2+
{[%clk 00:10:22]} {[%emt 00:00:27]} 33. Kb3 {[%clk 00:06:36]} {[%emt 00:00:26]}
b5 {[%clk 00:08:33]} {[%emt 00:02:19]} 34. a3 {[%clk 00:01:01]} {[%emt
00:06:06]} g5 {[%clk 00:05:23]} {[%emt 00:03:39]} 35. Nd5 {[%clk 00:01:00]}
{[%emt 00:00:31]} c5 {[%clk 00:04:52]} {[%emt 00:01:01]} 36. c4 {[%clk
00:00:53]} {[%emt 00:00:36]} Nd4+ {[%clk 00:04:34]} {[%emt 00:00:48]} 37. Ka2
{[%clk 00:00:36]} {[%emt 00:00:48]} bxc4 {[%clk 00:04:17]} {[%emt 00:00:46]} 38.
Re3 {[%clk 00:00:42]} {[%emt 00:00:24]} Rf1 {[%clk 00:03:57]} {[%emt 00:00:50]}
39. Re7+ {[%clk 00:00:33]} {[%emt 00:00:39]} Kf8 {[%clk 00:04:07]} {[%emt
00:00:20]} 40. Ra7 {[%clk 00:00:37]} {[%emt 00:00:27]} Nb3 {[%clk 00:04:20]}
{[%emt 00:00:16]} 41. Ra8+ {[%clk 00:00:47]} {[%emt 00:00:19]} Kf7 {[%clk
00:04:17]} {[%emt 00:00:33]} 42. Ra7+ {[%clk 00:01:00]} {[%emt 00:00:17]} Kg6
{[%clk 00:04:18]} {[%emt 00:00:28]} 43. Ne7+ {[%clk 00:01:05]} {[%emt
00:00:25]} Kf6 {[%clk 00:04:23]} {[%emt 00:00:24]} 44. Ng8+ {[%clk 00:01:20]}
{[%emt 00:00:15]} Ke6 {[%clk 00:03:55]} {[%emt 00:00:59]} 45. Re7+ {[%clk
00:01:17]} {[%emt 00:00:33]} Kd5 {[%clk 00:04:17]} {[%emt 00:00:07]} 0-1

[Event "Mistrovství Čech mládeže 2023 - HD14"]
[Site "Harrachov, Czech Republic"]
[Date "2023.10.26"]
[Round "7.12"]
[White "Čech, Nicolas"]
[Black "Stefaniv, Vladislav"]
[Result "0-1"]
[TimeControl "90m + 30s"]
[WhiteElo "1399"]
[BlackElo "1566"]

1. e4 {[%clk 01:30:56]} {[%emt 00:00:04]} e6 {[%clk 01:30:57]} {[%emt
00:00:04]} 2. d4 {[%clk 01:31:19]} {[%emt 00:00:06]} d5 {[%clk 01:31:23]}
{[%emt 00:00:04]} 3. exd5 {[%clk 01:31:24]} {[%emt 00:00:26]} exd5 {[%clk
01:31:48]} {[%emt 00:00:05]} 4. Bd3 {[%clk 01:31:04]} {[%emt 00:00:50]} c5
{[%clk 01:32:05]} {[%emt 00:00:13]} 5. dxc5 {[%clk 01:30:45]} {[%emt 00:00:48]}
Bxc5 {[%clk 01:32:28]} {[%emt 00:00:08]} 6. Nf3 {[%clk 01:29:07]} {[%emt
00:02:08]} Nf6 {[%clk 01:30:52]} {[%emt 00:02:06]} 7. O-O {[%clk 01:26:52]}
{[%emt 00:02:45]} O-O {[%clk 01:30:29]} {[%emt 00:00:54]} 8. c3 {[%clk
01:23:40]} {[%emt 00:03:42]} Nc6 {[%clk 01:28:43]} {[%emt 00:02:16]} 9. h3
{[%clk 01:19:44]} {[%emt 00:04:24]} Qd6 {[%clk 01:20:39]} {[%emt 00:08:34]} 10.
Re1 {[%clk 01:16:07]} {[%emt 00:04:08]} Bxh3 {[%clk 00:58:46]} {[%emt
00:22:23]} 11. gxh3 {[%clk 01:15:50]} {[%emt 00:00:46]} Qg3+ {[%clk 00:58:29]}
{[%emt 00:00:46]} 12. Kh1 {[%clk 01:15:14]} {[%emt 00:01:07]} Qxh3+ {[%clk
00:46:50]} {[%emt 00:12:09]} 13. Nh2 {[%clk 01:14:25]} {[%emt 00:01:19]} Bxf2
{[%clk 00:46:21]} {[%emt 00:01:00]} 14. Rf1 {[%clk 01:13:01]} {[%emt 00:01:53]}
Bg3 {[%clk 00:46:05]} {[%emt 00:00:45]} 15. Qe2 {[%clk 01:11:11]} {[%emt
00:02:21]} Ng4 {[%clk 00:44:41]} {[%emt 00:01:54]} 16. Bf5 {[%clk 01:08:18]}
{[%emt 00:03:23]} Qxh2+ {[%clk 00:43:02]} {[%emt 00:02:09]} 17. Qxh2 {[%clk
01:08:36]} {[%emt 00:00:11]} Nxh2 {[%clk 00:43:26]} {[%emt 00:00:07]} 18. Bf4
{[%clk 01:08:18]} {[%emt 00:00:49]} Nxf1 {[%clk 00:43:22]} {[%emt 00:00:35]}
0-1

[Event "Mistrovství Čech mládeže 2023 - HD14"]
[Site "Harrachov, Czech Republic"]
[Date "2023.10.26"]
[Round "7.13"]
[White "Tejnor, Martin"]
[Black "Stibor, Ondřej"]
[Result "1/2-1/2"]
[TimeControl "90m + 30s"]
[WhiteElo "1418"]
[BlackElo "1170"]

1. e4 {[%clk 01:30:58]} {[%emt 00:00:01]} e5 {[%clk 01:30:55]} {[%emt
00:00:06]} 2. Nf3 {[%clk 01:31:26]} {[%emt 00:00:03]} Nc6 {[%clk 01:31:22]}
{[%emt 00:00:03]} 3. Nc3 {[%clk 01:31:51]} {[%emt 00:00:05]} Bc5 {[%clk
01:31:06]} {[%emt 00:00:46]} 4. Bc4 {[%clk 01:29:32]} {[%emt 00:02:48]} d6
{[%clk 01:31:22]} {[%emt 00:00:14]} 5. h3 {[%clk 01:28:36]} {[%emt 00:01:26]}
Nf6 {[%clk 01:31:39]} {[%emt 00:00:13]} 6. d3 {[%clk 01:28:51]} {[%emt
00:00:15]} Be6 {[%clk 01:31:57]} {[%emt 00:00:12]} 7. Bb3 {[%clk 01:28:53]}
{[%emt 00:00:28]} O-O {[%clk 01:31:56]} {[%emt 00:00:31]} 8. Bg5 {[%clk
01:28:51]} {[%emt 00:00:32]} Qe7 {[%clk 01:30:34]} {[%emt 00:01:52]} 9. O-O
{[%clk 01:28:42]} {[%emt 00:00:39]} Rad8 {[%clk 01:29:47]} {[%emt 00:01:17]} 10.
Nd5 {[%clk 01:26:54]} {[%emt 00:02:18]} Bxd5 {[%clk 01:28:05]} {[%emt
00:02:10]} 11. Bxd5 {[%clk 01:26:25]} {[%emt 00:01:01]} h6 {[%clk 01:22:36]}
{[%emt 00:05:59]} 12. Bxf6 {[%clk 01:10:49]} {[%emt 00:16:07]} Qxf6 {[%clk
01:22:55]} {[%emt 00:00:10]} 13. Qd2 {[%clk 01:10:49]} {[%emt 00:00:30]} Nb4
{[%clk 01:11:38]} {[%emt 00:11:47]} 14. Bb3 {[%clk 01:07:52]} {[%emt 00:03:27]}
c6 {[%clk 01:10:12]} {[%emt 00:01:57]} 15. Rfe1 {[%clk 01:04:50]} {[%emt
00:03:32]} Rfe8 {[%clk 01:09:06]} {[%emt 00:01:35]} 16. Rad1 {[%clk 00:53:16]}
{[%emt 00:12:04]} d5 {[%clk 01:06:10]} {[%emt 00:03:26]} 17. exd5 {[%clk
00:53:28]} {[%emt 00:00:18]} cxd5 {[%clk 01:06:23]} {[%emt 00:00:16]} 18. d4
{[%clk 00:50:31]} {[%emt 00:03:27]} exd4 {[%clk 01:00:37]} {[%emt 00:06:17]} 19.
Rxe8+ {[%clk 00:50:32]} {[%emt 00:00:29]} Rxe8 {[%clk 01:01:00]} {[%emt
00:00:07]} 20. a3 {[%clk 00:50:49]} {[%emt 00:00:14]} Nc6 {[%clk 00:59:25]}
{[%emt 00:02:05]} 21. Bxd5 {[%clk 00:49:59]} {[%emt 00:01:20]} Rd8 {[%clk
00:58:14]} {[%emt 00:01:41]} 22. Be4 {[%clk 00:45:20]} {[%emt 00:05:09]} Bb6
{[%clk 00:54:30]} {[%emt 00:04:14]} 23. Qd3 {[%clk 00:44:18]} {[%emt 00:01:31]}
g6 {[%clk 00:46:09]} {[%emt 00:08:51]} 24. Qc4 {[%clk 00:42:06]} {[%emt
00:02:43]} Kg7 {[%clk 00:36:54]} {[%emt 00:09:45]} 25. a4 {[%clk 00:32:04]}
{[%emt 00:10:32]} Na5 {[%clk 00:33:01]} {[%emt 00:04:23]} 26. Qb5 {[%clk
00:30:43]} {[%emt 00:01:52]} Qe6 {[%clk 00:26:15]} {[%emt 00:07:16]} 27. Qe2
{[%clk 00:25:47]} {[%emt 00:05:25]} Re8 {[%clk 00:24:27]} {[%emt 00:02:18]} 28.
Re1 {[%clk 00:25:23]} {[%emt 00:00:54]} Nc4 {[%clk 00:22:51]} {[%emt 00:02:07]}
29. b4 {[%clk 00:25:05]} {[%emt 00:00:47]} Nd6 {[%clk 00:22:02]} {[%emt
00:01:19]} 30. Bd3 {[%clk 00:25:01]} {[%emt 00:00:35]} Qxe2 {[%clk 00:21:43]}
{[%emt 00:00:49]} 31. Rxe2 {[%clk 00:24:34]} {[%emt 00:00:57]} Rxe2 {[%clk
00:22:05]} {[%emt 00:00:07]} 32. Bxe2 {[%clk 00:24:59]} {[%emt 00:00:06]} a6
{[%clk 00:21:47]} {[%emt 00:00:48]} 33. Bd3 {[%clk 00:25:14]} {[%emt 00:00:14]}
Kf6 {[%clk 00:22:00]} {[%emt 00:00:17]} 34. Kf1 {[%clk 00:25:32]} {[%emt
00:00:12]} g5 {[%clk 00:21:09]} {[%emt 00:01:21]} 35. Ke2 {[%clk 00:25:41]}
{[%emt 00:00:21]} Ke6 {[%clk 00:20:29]} {[%emt 00:01:09]} 36. Nd2 {[%clk
00:23:47]} {[%emt 00:02:24]} Ke5 {[%clk 00:20:31]} {[%emt 00:00:29]} 37. Kf3
{[%clk 00:23:17]} {[%emt 00:01:00]} f5 {[%clk 00:20:00]} {[%emt 00:01:01]} 38.
Nc4+ {[%clk 00:23:18]} {[%emt 00:00:29]} Nxc4 {[%clk 00:20:21]} {[%emt
00:00:09]} 39. Bxc4 {[%clk 00:23:42]} {[%emt 00:00:06]} Bc7 {[%clk 00:15:30]}
{[%emt 00:05:21]} 40. Bd3 {[%clk 00:21:48]} {[%emt 00:02:23]} Bd6 {[%clk
00:13:44]} {[%emt 00:02:15]} 41. b5 {[%clk 00:22:04]} {[%emt 00:00:14]} a5
{[%clk 00:12:57]} {[%emt 00:01:18]} 42. Bc4 {[%clk 00:21:31]} {[%emt 00:01:03]}
b6 {[%clk 00:12:19]} {[%emt 00:01:08]} 43. Ke2 {[%clk 00:20:30]} {[%emt
00:01:31]} h5 {[%clk 00:11:12]} {[%emt 00:01:36]} 44. g3 {[%clk 00:16:04]}
{[%emt 00:04:57]} f4 {[%clk 00:08:12]} {[%emt 00:03:31]} 45. Kf3 {[%clk
00:14:08]} {[%emt 00:02:26]} fxg3 {[%clk 00:07:15]} {[%emt 00:01:27]} 46. fxg3
{[%clk 00:14:23]} {[%emt 00:00:16]} Bc5 {[%clk 00:07:11]} {[%emt 00:00:34]} 47.
h4 {[%clk 00:12:56]} {[%emt 00:01:56]} g4+ {[%clk 00:05:12]} {[%emt 00:02:29]}
48. Ke2 {[%clk 00:13:00]} {[%emt 00:00:26]} Kf6 {[%clk 00:05:27]} {[%emt
00:00:15]} 49. Bd5 {[%clk 00:12:00]} {[%emt 00:01:30]} Kg7 {[%clk 00:05:32]}
{[%emt 00:00:25]} 50. Be6 {[%clk 00:12:13]} {[%emt 00:00:17]} Bd6 {[%clk
00:05:38]} {[%emt 00:00:24]} 51. Kf2 {[%clk 00:12:37]} {[%emt 00:00:06]} Bc5
{[%clk 00:05:59]} {[%emt 00:00:10]} 52. Kg2 {[%clk 00:12:58]} {[%emt 00:00:08]}
Kf6 {[%clk 00:06:12]} {[%emt 00:00:17]} 53. Bd7 {[%clk 00:13:23]} {[%emt
00:00:05]} Ke7 {[%clk 00:06:07]} {[%emt 00:00:34]} 54. Bf5 {[%clk 00:13:12]}
{[%emt 00:00:41]} Kf6 {[%clk 00:06:19]} {[%emt 00:00:19]} 55. Be4 {[%clk
00:13:39]} {[%emt 00:00:03]} Kg7 {[%clk 00:05:57]} {[%emt 00:00:52]} 56. Bc6
{[%clk 00:13:54]} {[%emt 00:00:14]} Kf8 {[%clk 00:06:16]} {[%emt 00:00:11]} 57.
Bd5 {[%clk 00:13:40]} {[%emt 00:00:43]} Kg7 {[%clk 00:06:12]} {[%emt 00:00:35]}
58. Be4 {[%clk 00:13:40]} {[%emt 00:00:29]} Kf6 {[%clk 00:06:30]} {[%emt
00:00:13]} 59. Kf1 {[%clk 00:14:01]} {[%emt 00:00:08]} Ke5 {[%emt 00:01:40]}
1/2-1/2

[Event "Mistrovství Čech mládeže 2023 - HD14"]
[Site "Harrachov, Czech Republic"]
[Date "2023.10.26"]
[Round "7.14"]
[White "Denko, Otakar"]
[Black "Borecký, Andrej"]
[Result "0-1"]
[TimeControl "90m + 30s"]
[WhiteElo "1417"]
[BlackElo "1341"]

1. e4 {[%clk 01:30:57]} {[%emt 00:00:03]} c5 {[%clk 01:30:54]} {[%emt
00:00:06]} 2. Nf3 {[%clk 01:31:11]} {[%emt 00:00:16]} Nc6 {[%clk 01:31:17]}
{[%emt 00:00:08]} 3. d4 {[%clk 01:31:13]} {[%emt 00:00:28]} cxd4 {[%clk
01:31:38]} {[%emt 00:00:08]} 4. Nxd4 {[%clk 01:31:28]} {[%emt 00:00:16]} Nf6
{[%clk 01:31:38]} {[%emt 00:00:30]} 5. Nc3 {[%clk 01:31:30]} e5 {[%clk
01:31:36]} {[%emt 00:01:00]} 6. Nf3 {[%clk 01:30:54]} Bb4 {[%clk 01:31:32]}
{[%emt 00:01:39]} 7. Bd3 {[%clk 01:30:18]} O-O {[%emt 00:05:15]} 8. a3 {[%clk
01:29:27]} Bxc3+ {[%clk 01:28:17]} {[%emt 00:01:28]} 9. bxc3 {[%clk 01:29:44]}
{[%emt 00:00:12]} d6 {[%clk 01:25:52]} {[%emt 00:02:55]} 10. h3 {[%clk
01:29:34]} {[%emt 00:00:41]} h6 {[%clk 01:25:07]} {[%emt 00:01:15]} 11. O-O
{[%clk 01:29:21]} {[%emt 00:00:43]} Be6 {[%clk 01:24:03]} {[%emt 00:01:33]} 12.
Re1 {[%clk 01:26:29]} {[%emt 00:03:22]} Rc8 {[%clk 01:18:51]} {[%emt 00:05:42]}
13. Bd2 {[%clk 01:22:17]} {[%emt 00:04:42]} Na5 {[%clk 01:13:50]} {[%emt
00:05:31]} 14. Rb1 {[%clk 01:19:10]} {[%emt 00:03:37]} Qc7 {[%clk 01:12:14]}
{[%emt 00:02:06]} 15. Rb4 {[%clk 01:14:48]} {[%emt 00:04:52]} Nc4 {[%clk
01:09:10]} {[%emt 00:03:34]} 16. Bxc4 {[%emt 00:03:58]} Bxc4 {[%clk 01:09:31]}
{[%emt 00:00:08]} 17. Qa1 {[%clk 01:06:43]} {[%emt 00:05:08]} a5 {[%clk
01:08:25]} {[%emt 00:01:36]} 18. Rb2 {[%clk 01:05:33]} {[%emt 00:01:40]} a4
{[%clk 01:04:40]} {[%emt 00:04:15]} 19. Rb4 {[%clk 01:02:12]} {[%emt 00:03:51]}
b5 {[%clk 01:05:00]} {[%emt 00:00:10]} 20. Re3 {[%clk 00:59:06]} {[%emt
00:03:36]} d5 {[%clk 01:01:47]} {[%emt 00:03:44]} 21. Re1 {[%clk 00:53:11]}
{[%emt 00:06:24]} Nxe4 {[%clk 01:00:01]} {[%emt 00:02:16]} 22. Qc1 {[%clk
00:46:43]} {[%emt 00:06:58]} f5 {[%clk 00:55:28]} {[%emt 00:05:04]} 23. Nh2
{[%clk 00:41:51]} {[%emt 00:05:20]} f4 {[%emt 00:09:10]} 24. Ng4 {[%clk
00:35:10]} {[%emt 00:00:37]} Qc5 {[%clk 00:48:31]} {[%emt 00:05:23]} 25. Rxe4
{[%clk 00:34:13]} {[%emt 00:01:27]} dxe4 {[%clk 00:48:22]} {[%emt 00:00:39]} 26.
Qe1 {[%clk 00:32:50]} {[%emt 00:01:53]} Rcd8 {[%clk 00:46:37]} {[%emt
00:02:15]} 27. Bc1 {[%clk 00:27:32]} {[%emt 00:05:48]} Qd5 {[%clk 00:45:42]}
{[%emt 00:01:24]} 28. Bd2 {[%clk 00:25:51]} {[%emt 00:02:11]} Qxd2 {[%clk
00:45:40]} {[%emt 00:00:32]} 29. Qxe4 {[%clk 00:26:11]} {[%emt 00:00:10]} f3
{[%clk 00:42:05]} {[%emt 00:04:05]} 0-1

[Event "Mistrovství Čech mládeže 2023 - HD14"]
[Site "Harrachov, Czech Republic"]
[Date "2023.10.26"]
[Round "7.15"]
[White "Krautschneider, Daniel Jan"]
[Black "Ugrenovich, Jaroslav"]
[Result "1-0"]
[TimeControl "90m + 30s"]
[WhiteElo "1669"]
[BlackElo "1277"]

1. e4 {[%clk 01:30:50]} {[%emt 00:00:09]} c6 {[%clk 01:30:49]} {[%emt
00:00:12]} 2. Nc3 {[%clk 01:30:55]} {[%emt 00:00:25]} d5 {[%clk 01:31:07]}
{[%emt 00:00:12]} 3. Nf3 {[%clk 01:31:20]} {[%emt 00:00:05]} Bg4 {[%clk
01:30:29]} {[%emt 00:01:08]} 4. Be2 {[%clk 01:27:47]} {[%emt 00:04:03]} e6
{[%clk 01:29:06]} {[%emt 00:01:53]} 5. O-O {[%clk 01:27:17]} {[%emt 00:01:00]}
Nd7 {[%clk 01:28:18]} {[%emt 00:01:18]} 6. h3 {[%clk 01:27:06]} {[%emt
00:00:41]} Bxf3 {[%clk 01:27:37]} {[%emt 00:01:10]} 7. Bxf3 {[%clk 01:27:26]}
{[%emt 00:00:09]} d4 {[%clk 01:28:00]} {[%emt 00:00:08]} 8. Ne2 {[%clk
01:27:38]} {[%emt 00:00:18]} e5 {[%clk 01:27:21]} {[%emt 00:01:09]} 9. d3
{[%clk 01:27:42]} {[%emt 00:00:25]} g5 {[%clk 01:25:04]} {[%emt 00:02:48]} 10.
Ng3 {[%clk 01:25:55]} {[%emt 00:02:17]} f6 {[%clk 01:23:34]} {[%emt 00:02:00]}
11. Bh5+ {[%clk 01:25:55]} {[%emt 00:00:30]} Ke7 {[%clk 01:22:15]} {[%emt
00:01:49]} 12. Nf5+ {[%clk 01:26:17]} {[%emt 00:00:07]} Ke6 {[%clk 01:22:21]}
{[%emt 00:00:25]} 13. Qg4 {[%clk 01:26:32]} {[%emt 00:00:15]} Nb6 {[%clk
01:22:11]} {[%emt 00:00:40]} 14. Nh6+ {[%clk 01:25:23]} {[%emt 00:01:38]} Ke7
{[%clk 01:21:49]} {[%emt 00:00:52]} 15. Nf5+ {[%clk 01:24:12]} {[%emt
00:01:41]} Kd7 {[%clk 01:21:34]} {[%emt 00:00:45]} 16. Nxd4+ {[%clk 01:23:03]}
{[%emt 00:01:40]} Kd6 {[%clk 01:20:46]} {[%emt 00:01:18]} 17. Qe6+ {[%clk
01:15:31]} {[%emt 00:08:01]} Kc7 {[%clk 01:20:43]} {[%emt 00:00:33]} 18. Qf7+
{[%clk 01:15:21]} {[%emt 00:00:40]} Qe7 {[%clk 01:20:20]} {[%emt 00:00:53]} 19.
Ne6+ {[%clk 01:11:22]} {[%emt 00:04:29]} Kd6 {[%clk 01:18:43]} {[%emt
00:02:07]} 20. Nxf8 {[%clk 01:09:07]} {[%emt 00:02:44]} Qxf7 {[%clk 01:17:19]}
{[%emt 00:01:54]} 21. Bxf7 {[%clk 01:09:16]} {[%emt 00:00:21]} Rxf8 {[%clk
01:17:42]} {[%emt 00:00:07]} 22. Bh5 {[%clk 01:09:29]} {[%emt 00:00:16]} Ne7
{[%clk 01:17:25]} {[%emt 00:00:47]} 23. Be3 {[%clk 01:08:02]} {[%emt 00:01:56]}
Kc7 {[%clk 01:16:01]} {[%emt 00:01:55]} 24. a4 {[%clk 01:07:14]} {[%emt
00:01:19]} Rd8 {[%clk 01:15:10]} {[%emt 00:01:20]} 25. b4 {[%clk 01:05:11]}
{[%emt 00:02:33]} a6 {[%clk 01:13:57]} {[%emt 00:01:43]} 26. Rfb1 {[%clk
01:03:33]} {[%emt 00:02:08]} Nbc8 {[%clk 01:13:43]} {[%emt 00:00:44]} 27. b5
{[%clk 01:03:04]} {[%emt 00:00:59]} Nd6 {[%clk 01:10:20]} {[%emt 00:03:53]} 28.
bxa6 {[%clk 01:02:36]} {[%emt 00:00:58]} Ra8 {[%clk 01:10:04]} {[%emt
00:00:46]} 29. axb7 {[%clk 01:02:52]} {[%emt 00:00:14]} Nxb7 {[%clk 01:10:24]}
{[%emt 00:00:09]} 30. a5 {[%clk 01:03:16]} {[%emt 00:00:06]} Rhb8 {[%clk
01:09:54]} {[%emt 00:00:59]} 31. a6 {[%clk 00:56:47]} {[%emt 00:07:00]} Nd6
{[%clk 01:10:06]} {[%emt 00:00:18]} 32. Rxb8 {[%clk 00:54:11]} {[%emt
00:03:07]} Rxb8 {[%clk 01:10:12]} {[%emt 00:00:23]} 33. a7 {[%clk 00:53:23]}
{[%emt 00:01:18]} Ra8 {[%clk 01:10:36]} {[%emt 00:00:06]} 34. Bc5 {[%clk
00:52:52]} {[%emt 00:01:01]} Nec8 {[%clk 01:10:34]} {[%emt 00:00:32]} 35. Bg4
{[%clk 00:49:38]} {[%emt 00:03:44]} Kb7 {[%clk 01:09:33]} {[%emt 00:01:31]} 36.
Bxc8+ {[%clk 00:49:43]} {[%emt 00:00:25]} Nxc8 {[%clk 01:09:48]} {[%emt
00:00:14]} 37. Kf1 {[%clk 00:49:51]} {[%emt 00:00:22]} Nxa7 {[%clk 01:07:51]}
{[%emt 00:02:27]} 38. Ke2 {[%clk 00:47:27]} {[%emt 00:02:54]} Nc8 {[%clk
01:08:05]} {[%emt 00:00:16]} 39. Rxa8 {[%clk 00:47:50]} {[%emt 00:00:07]} Kxa8
{[%clk 01:08:30]} {[%emt 00:00:05]} 40. c3 {[%clk 00:48:01]} {[%emt 00:00:19]}
Kb7 {[%clk 01:08:45]} {[%emt 00:00:15]} 41. Ke3 {[%clk 00:48:13]} {[%emt
00:00:18]} Kc7 {[%clk 01:08:57]} {[%emt 00:00:17]} 42. d4 {[%clk 00:48:13]}
{[%emt 00:00:30]} Kd7 {[%clk 01:08:47]} {[%emt 00:00:40]} 43. g3 {[%clk
00:46:56]} {[%emt 00:01:48]} exd4+ {[%clk 01:08:05]} {[%emt 00:01:12]} 44. cxd4
{[%emt 00:00:37]} Ke6 {[%emt 00:00:31]} 45. f4 {[%clk 00:45:20]} {[%emt
00:03:29]} gxf4+ 46. Kxf4 {[%clk 00:45:24]} {[%emt 00:02:53]} Ne7 47. Bxe7
{[%emt 00:00:31]} Kxe7 {[%emt 00:00:08]} 48. Kf5 {[%emt 00:00:16]} Kf7 {[%emt
00:00:08]} 49. g4 {[%emt 00:00:47]} Ke7 {[%emt 00:00:29]} 50. h4 {[%emt
00:00:16]} Kf7 {[%emt 00:01:20]} 51. e5 {[%clk 00:45:18]} {[%emt 00:00:02]}
fxe5 {[%clk 01:05:56]} {[%emt 00:00:20]} 52. Kxe5 {[%clk 00:45:38]} {[%emt
00:00:10]} Ke7 {[%clk 01:06:12]} {[%emt 00:00:14]} 53. g5 {[%clk 00:45:56]}
{[%emt 00:00:12]} Kd7 {[%clk 01:06:13]} {[%emt 00:00:29]} 54. Kf6 {[%emt
00:00:28]} Kd6 {[%clk 01:06:35]} {[%emt 00:00:05]} 55. Kg7 {[%clk 00:46:27]}
{[%emt 00:00:04]} Kd5 {[%clk 01:06:57]} {[%emt 00:00:08]} 56. Kxh7 {[%emt
00:00:12]} Kxd4 {[%emt 00:00:08]} 57. g6 {[%emt 00:00:16]} 1-0